[Event "NK 2022"]
[Site "Groningen, Netherlands"]
[Date "2022.12.24"]
[Round "7.1"]
[White "Reinderman, Dimitri"]
[Black "Warmerdam, Max"]
[Result "1/2-1/2"]
[TimeControl "40/90; 30 minutes + increment 30 seconds from start"]
[WhiteTitle "GM"]
[BlackTitle "GM"]
[WhiteFideId "1001302"]
[BlackFideId "1048104"]
[WhiteElo "2575"]
[BlackElo "2619"]

1. c4 {[%clk 00:25:19]} e5 {[%clk 00:25:19]} {[%emt 00:00:01]} 2. g3 {[%clk
00:25:27]} {[%emt 00:00:02]} c6 {[%clk 00:25:28]} {[%emt 00:00:01]} 3. Nf3
{[%clk 00:25:34]} {[%emt 00:00:03]} e4 {[%clk 00:25:37]} {[%emt 00:00:01]} 4.
Nd4 {[%clk 00:25:43]} {[%emt 00:00:01]} d5 {[%clk 00:25:46]} {[%emt 00:00:01]}
5. cxd5 {[%clk 00:25:52]} {[%emt 00:00:01]} Qxd5 {[%clk 00:25:54]} {[%emt
00:00:02]} 6. Nc2 {[%clk 00:25:59]} {[%emt 00:00:03]} Nf6 {[%clk 00:26:03]}
{[%emt 00:00:01]} 7. Nc3 {[%clk 00:26:07]} {[%emt 00:00:03]} Qe5 {[%clk
00:26:12]} 8. Bg2 {[%clk 00:26:14]} {[%emt 00:00:02]} Na6 {[%clk 00:26:21]} 9.
O-O {[%clk 00:25:58]} {[%emt 00:00:26]} Be7 {[%clk 00:26:29]} {[%emt 00:00:02]}
10. Re1 {[%clk 00:25:51]} {[%emt 00:00:17]} O-O {[%clk 00:26:02]} {[%emt
00:00:37]} 11. d3 {[%clk 00:25:59]} {[%emt 00:00:03]} exd3 {[%clk 00:25:57]}
{[%emt 00:00:15]} 12. exd3 {[%clk 00:26:07]} {[%emt 00:00:01]} Qc7 {[%clk
00:25:53]} {[%emt 00:00:13]} 13. Bf4 {[%clk 00:25:59]} {[%emt 00:00:18]} Qd8
{[%clk 00:25:22]} {[%emt 00:00:42]} 14. d4 {[%clk 00:26:00]} {[%emt 00:00:09]}
Nc7 {[%clk 00:25:15]} {[%emt 00:00:17]} 15. Ne3 {[%clk 00:25:39]} {[%emt
00:00:32]} Be6 {[%clk 00:25:15]} {[%emt 00:00:10]} 16. Rc1 {[%clk 00:24:48]}
{[%emt 00:01:01]} Rc8 {[%clk 00:25:11]} {[%emt 00:00:14]} 17. a3 {[%clk
00:24:12]} {[%emt 00:00:46]} Re8 {[%clk 00:24:46]} {[%emt 00:00:34]} 18. Be5
{[%clk 00:22:17]} {[%emt 00:02:04]} Ncd5 {[%clk 00:23:44]} {[%emt 00:01:12]} 19.
Bxf6 {[%clk 00:21:05]} {[%emt 00:01:23]} Nxf6 {[%clk 00:23:45]} {[%emt
00:00:08]} 20. Qa4 {[%clk 00:21:08]} {[%emt 00:00:07]} a6 {[%clk 00:22:51]}
{[%emt 00:01:05]} 21. Rcd1 {[%clk 00:20:36]} {[%emt 00:00:42]} Bf8 {[%clk
00:21:28]} {[%emt 00:01:32]} 22. b4 {[%clk 00:18:40]} {[%emt 00:02:06]} Re7
{[%clk 00:19:44]} {[%emt 00:01:54]} 23. Rd2 {[%clk 00:17:42]} {[%emt 00:01:09]}
Rd7 {[%clk 00:18:46]} {[%emt 00:01:09]} 24. Red1 {[%clk 00:17:50]} {[%emt
00:00:02]} Ng4 {[%clk 00:18:30]} {[%emt 00:00:25]} 25. Nf1 {[%clk 00:17:25]}
{[%emt 00:00:35]} Nf6 {[%clk 00:18:32]} {[%emt 00:00:09]} 26. Ne3 {[%clk
00:16:58]} {[%emt 00:00:38]} Ng4 {[%clk 00:18:28]} {[%emt 00:00:14]} 27. Nf1
{[%clk 00:16:42]} {[%emt 00:00:26]} Nf6 {[%clk 00:17:59]} {[%emt 00:00:38]} 28.
Ne3 {[%clk 00:16:36]} {[%emt 00:00:16]} 1/2-1/2

[Event "NK 2022"]
[Site "Groningen, Netherlands"]
[Date "2022.12.24"]
[Round "7.2"]
[White "Kevlishvili, Robby"]
[Black "Van Foreest, Lucas"]
[Result "1-0"]
[TimeControl "40/90; 30 minutes + increment 30 seconds from start"]
[WhiteTitle "GM"]
[BlackTitle "GM"]
[WhiteFideId "1040634"]
[BlackFideId "1039792"]
[WhiteElo "2530"]
[BlackElo "2577"]

1. e4 {[%clk 00:25:17]} {[%emt 00:00:03]} e5 {[%clk 00:25:17]} {[%emt
00:00:04]} 2. Nf3 {[%clk 00:25:25]} {[%emt 00:00:02]} Nc6 {[%clk 00:25:25]}
{[%emt 00:00:02]} 3. Bb5 {[%clk 00:25:32]} {[%emt 00:00:03]} Nf6 {[%clk
00:25:33]} {[%emt 00:00:01]} 4. d3 {[%clk 00:25:30]} {[%emt 00:00:12]} Bc5
{[%clk 00:25:41]} {[%emt 00:00:02]} 5. c3 {[%clk 00:25:37]} {[%emt 00:00:03]}
O-O {[%clk 00:25:47]} {[%emt 00:00:04]} 6. O-O {[%clk 00:25:43]} {[%emt
00:00:04]} d6 {[%clk 00:25:45]} {[%emt 00:00:12]} 7. h3 {[%clk 00:25:36]}
{[%emt 00:00:17]} a6 {[%clk 00:25:49]} {[%emt 00:00:07]} 8. Ba4 {[%clk
00:24:25]} {[%emt 00:01:21]} b5 {[%clk 00:25:58]} {[%emt 00:00:01]} 9. Bc2
{[%clk 00:24:29]} {[%emt 00:00:06]} Bb6 {[%clk 00:25:53]} {[%emt 00:00:15]} 10.
a4 {[%clk 00:24:11]} {[%emt 00:00:28]} Rb8 {[%clk 00:26:01]} {[%emt 00:00:02]}
11. Re1 {[%clk 00:23:49]} {[%emt 00:00:32]} Re8 {[%clk 00:26:09]} {[%emt
00:00:02]} 12. Nbd2 {[%clk 00:23:56]} {[%emt 00:00:03]} d5 {[%clk 00:25:44]}
{[%emt 00:00:35]} 13. axb5 {[%clk 00:23:47]} {[%emt 00:00:20]} axb5 {[%clk
00:25:52]} {[%emt 00:00:02]} 14. Qe2 {[%clk 00:23:15]} {[%emt 00:00:42]} d4
{[%clk 00:23:33]} {[%emt 00:02:29]} 15. Nf1 {[%clk 00:23:17]} {[%emt 00:00:07]}
dxc3 {[%clk 00:23:29]} {[%emt 00:00:14]} 16. bxc3 {[%clk 00:23:25]} {[%emt
00:00:02]} b4 {[%clk 00:23:30]} {[%emt 00:00:09]} 17. Ba4 {[%clk 00:23:18]}
{[%emt 00:00:18]} Bd7 {[%clk 00:23:38]} {[%emt 00:00:01]} 18. Bxc6 {[%clk
00:21:53]} {[%emt 00:01:34]} Bxc6 {[%clk 00:23:46]} {[%emt 00:00:02]} 19. cxb4
{[%clk 00:22:01]} {[%emt 00:00:03]} Bb5 {[%clk 00:23:54]} {[%emt 00:00:02]} 20.
Rd1 {[%clk 00:22:02]} {[%emt 00:00:10]} Qd6 {[%clk 00:23:56]} {[%emt 00:00:08]}
21. Bg5 {[%clk 00:21:08]} {[%emt 00:01:04]} h6 {[%clk 00:21:28]} {[%emt
00:02:38]} 22. Bxf6 {[%clk 00:21:05]} {[%emt 00:00:12]} Qxf6 {[%clk 00:21:37]}
{[%emt 00:00:01]} 23. Ne3 {[%clk 00:21:09]} {[%emt 00:00:07]} Qd6 {[%clk
00:21:07]} {[%emt 00:00:39]} 24. Rab1 {[%clk 00:20:45]} {[%emt 00:00:33]} Bxe3
{[%clk 00:17:39]} {[%emt 00:03:38]} 25. Qxe3 {[%clk 00:20:50]} {[%emt
00:00:06]} Ba4 {[%clk 00:17:42]} {[%emt 00:00:08]} 26. Rdc1 {[%clk 00:20:48]}
{[%emt 00:00:12]} Rxb4 {[%clk 00:14:02]} {[%emt 00:03:50]} 27. Rxb4 {[%clk
00:20:38]} {[%emt 00:00:20]} Qxb4 {[%clk 00:14:09]} {[%emt 00:00:02]} 28. Rc3
{[%emt 00:00:16]} Qd6 {[%clk 00:12:42]} 29. Rxc7 {[%clk 00:19:16]} Bb3 {[%clk
00:12:50]} {[%emt 00:01:28]} 30. Qa7 {[%clk 00:15:28]} Qf6 {[%clk 00:12:32]}
{[%emt 00:04:24]} 31. Rb7 {[%clk 00:15:21]} {[%emt 00:00:19]} Bd1 {[%clk
00:06:05]} {[%emt 00:06:37]} 32. Rb8 {[%clk 00:14:48]} {[%emt 00:00:43]} Qe6
{[%clk 00:05:57]} {[%emt 00:00:18]} 33. Qa8 {[%clk 00:14:11]} {[%emt 00:00:47]}
Ba4 {[%clk 00:06:01]} {[%emt 00:00:06]} 34. Rxe8+ {[%clk 00:13:01]} {[%emt
00:01:20]} Bxe8 {[%clk 00:06:10]} {[%emt 00:00:02]} 35. Qb8 {[%clk 00:13:09]}
{[%emt 00:00:01]} f6 {[%clk 00:06:14]} {[%emt 00:00:06]} 36. Nh4 {[%clk
00:12:52]} {[%emt 00:00:27]} Kh7 {[%clk 00:06:16]} {[%emt 00:00:09]} 37. f4
{[%clk 00:10:26]} {[%emt 00:02:36]} exf4 {[%clk 00:06:15]} {[%emt 00:00:11]} 38.
Qxf4 {[%clk 00:10:23]} {[%emt 00:00:13]} Bb5 {[%clk 00:05:35]} {[%emt
00:00:51]} 39. d4 {[%clk 00:09:59]} {[%emt 00:00:33]} Bd3 {[%clk 00:04:32]}
{[%emt 00:01:13]} 40. Qf5+ {[%clk 00:09:50]} {[%emt 00:00:20]} Qxf5 {[%clk
00:04:40]} {[%emt 00:00:01]} 41. exf5 {[%clk 00:09:59]} {[%emt 00:00:01]} Be4
{[%clk 00:04:45]} {[%emt 00:00:05]} 42. Kf2 {[%clk 00:10:03]} {[%emt 00:00:06]}
Kg8 {[%clk 00:04:06]} {[%emt 00:00:48]} 43. Ke3 {[%clk 00:10:12]} {[%emt
00:00:02]} Bd5 {[%clk 00:03:59]} {[%emt 00:00:17]} 44. g3 {[%clk 00:09:39]}
{[%emt 00:00:42]} Kf7 {[%clk 00:04:00]} {[%emt 00:00:09]} 45. Ng6 {[%clk
00:09:47]} {[%emt 00:00:02]} Bb3 {[%clk 00:03:56]} {[%emt 00:00:13]} 46. Nf4
{[%clk 00:09:46]} {[%emt 00:00:11]} Bc2 {[%clk 00:03:33]} {[%emt 00:00:33]} 47.
g4 {[%clk 00:09:37]} {[%emt 00:00:19]} Ke7 {[%clk 00:03:29]} {[%emt 00:00:14]}
48. Nh5 {[%clk 00:09:26]} {[%emt 00:00:20]} g6 {[%clk 00:03:33]} {[%emt
00:00:06]} 49. fxg6 {[%clk 00:09:34]} {[%emt 00:00:02]} Bxg6 {[%clk 00:03:41]}
{[%emt 00:00:02]} 50. Ng3 {[%clk 00:09:34]} {[%emt 00:00:10]} Ke6 {[%clk
00:03:48]} {[%emt 00:00:03]} 51. Kf4 {[%clk 00:09:38]} {[%emt 00:00:06]} Bd3
{[%clk 00:02:57]} {[%emt 00:01:01]} 52. Nf5 {[%clk 00:08:33]} {[%emt 00:01:15]}
Bxf5 {[%clk 00:01:36]} {[%emt 00:01:31]} 53. d5+ {[%clk 00:08:41]} {[%emt
00:00:02]} 1-0

[Event "NK 2022"]
[Site "Groningen, Netherlands"]
[Date "2022.12.24"]
[Round "8.1"]
[White "Warmerdam, Max"]
[Black "Reinderman, Dimitri"]
[Result "1-0"]
[TimeControl "40/90; 30 minutes + increment 30 seconds from start"]
[WhiteTitle "GM"]
[BlackTitle "GM"]
[WhiteFideId "1048104"]
[BlackFideId "1001302"]
[WhiteElo "2619"]
[BlackElo "2575"]

1. d4 {[%clk 00:25:18]} {[%emt 00:00:01]} d5 {[%clk 00:25:20]} {[%emt
00:00:01]} 2. c4 {[%clk 00:25:27]} {[%emt 00:00:01]} e6 {[%clk 00:25:29]}
{[%emt 00:00:01]} 3. Nf3 {[%clk 00:25:36]} {[%emt 00:00:01]} c5 {[%clk
00:25:37]} {[%emt 00:00:02]} 4. cxd5 {[%clk 00:25:44]} exd5 {[%clk 00:25:47]}
{[%emt 00:00:01]} 5. Bg5 {[%clk 00:25:53]} {[%emt 00:00:01]} Be7 {[%clk
00:25:39]} {[%emt 00:00:18]} 6. Bxe7 {[%clk 00:26:01]} {[%emt 00:00:01]} Qxe7
{[%clk 00:25:48]} {[%emt 00:00:01]} 7. dxc5 {[%clk 00:26:09]} {[%emt 00:00:03]}
Qxc5 {[%clk 00:25:56]} {[%emt 00:00:02]} 8. Nc3 {[%clk 00:26:11]} {[%emt
00:00:08]} Nf6 {[%clk 00:26:03]} {[%emt 00:00:03]} 9. e3 {[%clk 00:26:09]}
{[%emt 00:00:11]} O-O {[%clk 00:26:06]} {[%emt 00:00:07]} 10. Be2 {[%clk
00:26:09]} {[%emt 00:00:09]} Nc6 {[%clk 00:26:09]} {[%emt 00:00:07]} 11. O-O
{[%clk 00:26:17]} {[%emt 00:00:02]} Bg4 {[%clk 00:26:01]} {[%emt 00:00:18]} 12.
Rc1 {[%clk 00:26:14]} {[%emt 00:00:13]} Rad8 {[%clk 00:24:58]} {[%emt
00:01:13]} 13. a3 {[%clk 00:25:05]} {[%emt 00:01:19]} Qe7 {[%clk 00:24:02]}
{[%emt 00:01:06]} 14. Nd4 {[%clk 00:25:10]} {[%emt 00:00:06]} Bxe2 {[%clk
00:23:52]} {[%emt 00:00:20]} 15. Ncxe2 {[%clk 00:25:08]} {[%emt 00:00:12]} Ne5
{[%clk 00:23:24]} {[%emt 00:00:38]} 16. Nc3 {[%clk 00:24:52]} {[%emt 00:00:27]}
g6 {[%clk 00:23:19]} {[%emt 00:00:15]} 17. Qe2 {[%clk 00:24:36]} {[%emt
00:00:26]} Rd7 {[%clk 00:23:18]} {[%emt 00:00:12]} 18. Rc2 {[%clk 00:24:40]}
{[%emt 00:00:05]} Rfd8 {[%clk 00:23:05]} {[%emt 00:00:23]} 19. Rfc1 {[%clk
00:24:04]} {[%emt 00:00:47]} Ne4 {[%clk 00:23:05]} {[%emt 00:00:10]} 20. h3
{[%clk 00:24:03]} {[%emt 00:00:10]} a6 {[%clk 00:22:44]} {[%emt 00:00:33]} 21.
Na2 {[%clk 00:23:29]} {[%emt 00:00:43]} Nc4 {[%clk 00:22:03]} {[%emt 00:00:51]}
22. Nb4 {[%clk 00:23:29]} {[%emt 00:00:10]} Ne5 {[%clk 00:22:11]} {[%emt
00:00:02]} 23. Nd3 {[%clk 00:23:28]} {[%emt 00:00:11]} Nc4 {[%clk 00:22:09]}
{[%emt 00:00:12]} 24. a4 {[%clk 00:23:32]} {[%emt 00:00:06]} Kg7 {[%clk
00:21:52]} {[%emt 00:00:26]} 25. b3 {[%clk 00:23:15]} {[%emt 00:00:27]} Ncd6
{[%clk 00:21:45]} {[%emt 00:00:17]} 26. Qg4 {[%clk 00:22:43]} {[%emt 00:00:42]}
Nf6 {[%clk 00:21:33]} {[%emt 00:00:22]} 27. Qf4 {[%clk 00:22:18]} {[%emt
00:00:33]} Nde4 {[%clk 00:20:50]} {[%emt 00:00:55]} 28. Ne5 {[%clk 00:21:10]}
{[%emt 00:01:17]} Nh5 {[%clk 00:19:24]} {[%emt 00:01:36]} 29. Qh2 {[%clk
00:21:11]} {[%emt 00:00:09]} Nd6 {[%clk 00:18:57]} {[%emt 00:00:37]} 30. Nxd7
{[%clk 00:21:15]} {[%emt 00:00:07]} Rxd7 {[%clk 00:19:06]} {[%emt 00:00:01]} 31.
Nf3 {[%clk 00:21:09]} {[%emt 00:00:16]} Ne8 {[%clk 00:18:05]} {[%emt 00:01:11]}
32. Qe5+ {[%clk 00:21:17]} {[%emt 00:00:02]} Nhf6 {[%clk 00:18:12]} {[%emt
00:00:02]} 33. Qxe7 {[%clk 00:20:55]} {[%emt 00:00:33]} Rxe7 {[%clk 00:18:20]}
{[%emt 00:00:01]} 34. Nd4 {[%clk 00:21:03]} {[%emt 00:00:01]} Rd7 {[%clk
00:18:15]} {[%emt 00:00:15]} 35. g4 {[%clk 00:21:00]} {[%emt 00:00:13]} h6
{[%clk 00:18:19]} {[%emt 00:00:06]} 36. f3 {[%clk 00:21:08]} {[%emt 00:00:02]}
Kf8 {[%clk 00:18:19]} {[%emt 00:00:10]} 37. Kf2 {[%clk 00:21:11]} {[%emt
00:00:07]} Ke7 {[%clk 00:18:27]} {[%emt 00:00:02]} 38. h4 {[%clk 00:21:05]}
{[%emt 00:00:16]} Kd6 {[%clk 00:18:11]} {[%emt 00:00:26]} 39. Rc8 {[%clk
00:21:06]} {[%emt 00:00:09]} Ke7 {[%clk 00:17:58]} {[%emt 00:00:24]} 40. Ke2
{[%clk 00:20:49]} {[%emt 00:00:27]} Kf8 {[%clk 00:16:36]} {[%emt 00:01:32]} 41.
Rb8 {[%clk 00:20:44]} {[%emt 00:00:15]} Ke7 {[%clk 00:16:41]} {[%emt 00:00:06]}
42. Rcc8 {[%clk 00:20:31]} {[%emt 00:00:22]} Nd6 {[%clk 00:16:40]} {[%emt
00:00:11]} 43. Rc5 {[%clk 00:20:21]} {[%emt 00:00:19]} Nde8 {[%clk 00:16:33]}
{[%emt 00:00:17]} 44. b4 {[%clk 00:20:27]} {[%emt 00:00:04]} Nd6 {[%clk
00:15:43]} {[%emt 00:01:00]} 45. g5 {[%clk 00:20:24]} {[%emt 00:00:13]} hxg5
{[%clk 00:15:52]} {[%emt 00:00:02]} 46. hxg5 {[%clk 00:20:32]} Nh5 {[%clk
00:15:57]} {[%emt 00:00:06]} 47. Rxd5 {[%clk 00:20:36]} {[%emt 00:00:06]} Rc7
{[%clk 00:15:53]} {[%emt 00:00:14]} 48. Rc5 {[%clk 00:20:44]} {[%emt 00:00:02]}
Rd7 {[%clk 00:16:01]} {[%emt 00:00:02]} 49. Re5# {[%clk 00:20:53]} {[%emt
00:00:01]} 1-0

[Event "NK 2022"]
[Site "Groningen, Netherlands"]
[Date "2022.12.24"]
[Round "8.2"]
[White "Van Foreest, Lucas"]
[Black "Kevlishvili, Robby"]
[Result "1/2-1/2"]
[TimeControl "40/90; 30 minutes + increment 30 seconds from start"]
[WhiteTitle "GM"]
[BlackTitle "GM"]
[WhiteFideId "1039792"]
[BlackFideId "1040634"]
[WhiteElo "2577"]
[BlackElo "2530"]

1. d4 {[%clk 00:25:18]} {[%emt 00:00:02]} d5 {[%clk 00:25:15]} {[%emt
00:00:06]} 2. Nf3 {[%clk 00:25:26]} e6 {[%clk 00:25:09]} {[%emt 00:00:16]} 3.
g3 {[%clk 00:25:15]} {[%emt 00:00:21]} b5 {[%clk 00:24:11]} {[%emt 00:01:08]} 4.
Bg2 {[%clk 00:25:21]} {[%emt 00:00:05]} Nf6 {[%clk 00:24:15]} {[%emt 00:00:05]}
5. a4 {[%clk 00:25:12]} {[%emt 00:00:19]} b4 {[%clk 00:24:23]} {[%emt
00:00:02]} 6. O-O {[%clk 00:25:11]} {[%emt 00:00:11]} a5 {[%clk 00:24:24]}
{[%emt 00:00:09]} 7. c4 {[%clk 00:25:17]} {[%emt 00:00:04]} bxc3 {[%clk
00:24:29]} {[%emt 00:00:05]} 8. bxc3 {[%clk 00:25:12]} {[%emt 00:00:14]} Ba6
{[%clk 00:24:14]} {[%emt 00:00:26]} 9. Na3 {[%clk 00:24:48]} {[%emt 00:00:33]}
Nbd7 {[%clk 00:24:09]} {[%emt 00:00:15]} 10. c4 {[%clk 00:24:48]} {[%emt
00:00:10]} c6 {[%clk 00:23:52]} {[%emt 00:00:27]} 11. Bf4 {[%clk 00:21:23]}
{[%emt 00:03:35]} Bxa3 {[%clk 00:23:38]} {[%emt 00:00:24]} 12. Rxa3 {[%clk
00:20:34]} {[%emt 00:00:58]} Bxc4 {[%clk 00:23:36]} {[%emt 00:00:13]} 13. Qc2
{[%clk 00:19:11]} {[%emt 00:01:33]} O-O {[%clk 00:23:37]} {[%emt 00:00:09]} 14.
Re1 {[%clk 00:19:18]} {[%emt 00:00:03]} Ne4 {[%clk 00:22:54]} {[%emt 00:00:53]}
15. Ne5 {[%clk 00:19:09]} {[%emt 00:00:19]} Nxe5 {[%clk 00:22:59]} {[%emt
00:00:05]} 16. Bxe5 {[%clk 00:19:18]} {[%emt 00:00:01]} Nf6 {[%clk 00:22:43]}
{[%emt 00:00:25]} 17. Raa1 {[%clk 00:18:51]} {[%emt 00:00:37]} Ng4 {[%clk
00:20:58]} {[%emt 00:01:55]} 18. Bf4 {[%clk 00:18:59]} {[%emt 00:00:02]} Qe7
{[%clk 00:20:49]} {[%emt 00:00:19]} 19. e4 {[%clk 00:19:03]} {[%emt 00:00:07]}
Nf6 {[%clk 00:20:46]} {[%emt 00:00:13]} 20. Reb1 {[%clk 00:17:22]} {[%emt
00:01:51]} Rfc8 {[%clk 00:20:46]} {[%emt 00:00:10]} 21. Rb6 {[%clk 00:17:08]}
{[%emt 00:00:24]} c5 {[%clk 00:20:34]} {[%emt 00:00:22]} 22. Bd6 {[%clk
00:16:03]} {[%emt 00:01:15]} Qd8 {[%clk 00:20:26]} {[%emt 00:00:18]} 23. Bxc5
{[%clk 00:16:05]} {[%emt 00:00:09]} Nxe4 {[%clk 00:20:19]} {[%emt 00:00:17]} 24.
Bxe4 {[%clk 00:15:39]} {[%emt 00:00:35]} dxe4 {[%clk 00:20:27]} {[%emt
00:00:03]} 25. Qxe4 {[%clk 00:14:45]} {[%emt 00:01:04]} Bd5 {[%clk 00:20:35]}
{[%emt 00:00:01]} 26. Qe5 {[%clk 00:14:48]} {[%emt 00:00:06]} Rab8 {[%clk
00:20:28]} {[%emt 00:00:18]} 27. Rd6 {[%clk 00:14:11]} {[%emt 00:00:47]} Qe8
{[%clk 00:20:28]} {[%emt 00:00:10]} 28. Qe1 {[%clk 00:13:36]} {[%emt 00:00:45]}
Ra8 {[%clk 00:19:22]} {[%emt 00:01:17]} 29. h4 {[%clk 00:13:35]} {[%emt
00:00:11]} Rc6 {[%clk 00:19:20]} {[%emt 00:00:11]} 30. Rxc6 {[%clk 00:13:21]}
{[%emt 00:00:24]} Qxc6 {[%clk 00:19:28]} {[%emt 00:00:02]} 31. Kh2 {[%clk
00:13:30]} {[%emt 00:00:02]} Qd7 {[%clk 00:19:26]} {[%emt 00:00:12]} 32. Qe5
{[%clk 00:12:15]} {[%emt 00:01:25]} Bc6 {[%clk 00:19:28]} {[%emt 00:00:07]} 33.
g4 {[%clk 00:12:17]} {[%emt 00:00:08]} Qd5 {[%clk 00:19:04]} {[%emt 00:00:34]}
34. Qg3 {[%clk 00:12:04]} {[%emt 00:00:23]} h6 {[%clk 00:18:48]} {[%emt
00:00:25]} 35. g5 {[%clk 00:11:15]} {[%emt 00:00:59]} hxg5 {[%clk 00:18:50]}
{[%emt 00:00:07]} 36. hxg5 {[%clk 00:11:23]} {[%emt 00:00:03]} Kh7 {[%clk
00:18:49]} {[%emt 00:00:11]} 37. g6+ {[%clk 00:08:43]} {[%emt 00:02:50]} fxg6
{[%clk 00:18:53]} {[%emt 00:00:06]} 38. Re1 {[%clk 00:08:51]} {[%emt 00:00:02]}
Qh5+ {[%clk 00:18:55]} {[%emt 00:00:09]} 39. Qh3 {[%clk 00:09:00]} {[%emt
00:00:01]} Qxh3+ {[%clk 00:18:51]} {[%emt 00:00:13]} 40. Kxh3 {[%clk 00:09:09]}
{[%emt 00:00:01]} Bxa4 {[%clk 00:19:00]} {[%emt 00:00:01]} 41. Kg4 {[%clk
00:09:15]} {[%emt 00:00:04]} Bc6 {[%clk 00:18:44]} {[%emt 00:00:26]} 42. Kg5
{[%clk 00:09:21]} {[%emt 00:00:04]} Bd5 {[%clk 00:18:52]} {[%emt 00:00:03]} 43.
Re3 {[%clk 00:09:27]} {[%emt 00:00:03]} a4 {[%clk 00:18:23]} {[%emt 00:00:39]}
44. Rh3+ {[%clk 00:09:34]} {[%emt 00:00:03]} Kg8 {[%clk 00:18:32]} {[%emt
00:00:01]} 45. Kxg6 {[%clk 00:09:41]} {[%emt 00:00:03]} Rb8 {[%clk 00:18:16]}
{[%emt 00:00:27]} 46. Rh4 {[%clk 00:09:24]} {[%emt 00:00:27]} Rb1 {[%clk
00:18:06]} {[%emt 00:00:19]} 47. Rf4 {[%clk 00:08:55]} {[%emt 00:00:39]} Rg1+
{[%clk 00:18:13]} {[%emt 00:00:03]} 48. Kh5 {[%clk 00:09:04]} {[%emt 00:00:01]}
Rh1+ {[%clk 00:18:17]} {[%emt 00:00:06]} 49. Kg6 {[%clk 00:09:13]} {[%emt
00:00:01]} Rg1+ {[%clk 00:18:25]} {[%emt 00:00:02]} 50. Kh5 {[%clk 00:09:22]}
{[%emt 00:00:01]} Rh1+ {[%clk 00:18:34]} {[%emt 00:00:02]} 1/2-1/2